[Event "FRA-chT Top 12 2019"]
[Site "Brest"]
[Date "2019.05.25"]
[Round "8.1"]
[White "Fedorov, Alexei"]
[Black "Wirig, Anthony"]
[Result "1-0"]
[ECO "B20"]
[WhiteElo "2566"]
[BlackElo "2516"]
[Annotator "ChessBase"]
[PlyCount "107"]
[EventDate "2019.05.18"]
[EventType "team-tourn"]
[EventCountry "FRA"]
[SourceTitle "playchess.com"]
[Source "ChessBase"]
[SourceQuality "1"]
[TimeControl "40/5400+30:1800+30"]

1. e4 {[%emt 0:00:00]} c5 {[%emt 0:00:00]} 2. d3 {[%emt 0:00:00]} d5 {[%emt 0:00:04]} 3. Be2 {[%emt 0:01:13]} e6 {[%emt 0:03:56]} 4. f4 {[%emt 0:01:10]} Nc6 {[%emt 0:05:38]} 5. Nf3 {[%emt 0:00:06]} Nf6 {[%emt 0:00:30]} 6. e5 {[%emt 0:03:40]} Ng4 {[%emt 0:02:49]} 7. c4 {[%emt 0:15:17]} Nh6 {[%emt 0:08:57]} 8. Be3 {[%emt 0:04:44]} f6 {[%emt 0:03:18]} 9. O-O {[%emt 0:00:32]} Nf5 {[%emt 0:02:38]} 10. Bf2 {[%emt 0:00:38]} d4 {[%emt 0:08:16]} 11. exf6 {[%emt 0:07:26]} gxf6 {[%emt 0:03:17]} 12. Nh4 {[%emt 0:00:16]} Bd6 {[%emt 0:03:13]} 13. Nxf5 {[%emt 0:01:39]} exf5 {[%emt 0:00:02]} 14. Bh5+ {[%emt 0:04:40]} Kd7 {[%emt 0:00:36]} 15. Be1 {[%emt 0:16:29]} b6 {[%emt 0:02:35]} 16. b4 {[%emt 0:06:46]} Bb7 {[%emt 0:02:56]} 17. bxc5 {[%emt 0:00:34]} Bxc5 {[%emt 0:01:43]} 18. Nd2 {[%emt 0:01:37]} Rg8 {[%emt 0:02:26]} 19. Bf3 {[%emt 0:01:13]} Kc7 {[%emt 0:02:58]} 20. Nb3 {[%emt 0:01:03]} Qd6 {[%emt 0:01:20]} 21. Rb1 {[%emt 0:02:34]} Rae8 {[%emt 0:09:03]} 22. Bd2 {[%emt 0:05:40]} a6 {[%emt 0:06:11]} 23. Nxc5 {[%emt 0:00:49]} Qxc5 {[%emt 0:00:32]} 24. Qa4 {[%emt 0:03:50]} Re3 {[%emt 0:02:48]} 25. Bxe3 {[%emt 0:03:36]} dxe3 {[%emt 0:01:57]} 26. Rfe1 {[%emt 0:03:26]} Rg7 {[%emt 0:09:42]} 27. Kh1 {[%emt 0:06:23]} Re7 {[%emt 0:06:30]} 28. Rb2 {[%emt 0:02:35]} Nd4 {[%emt 0:02:28]} 29. Bxb7 {[%emt 0:00:08]} Kxb7 {[%emt 0:00:03]} 30. Reb1 {[%emt 0:02:08]} Re6 {[%emt 0:06:25]} 31. Qd7+ {[%emt 0:00:09]} Ka8 {[%emt 0:00:50]} 32. Qd5+ {[%emt 0:01:41]} Qxd5 {[%emt 0:01:46]} 33. cxd5 {[%emt 0:00:04]} Re7 {[%emt 0:00:16]} 34. Rxb6 {[%emt 0:00:31]} Ka7 {[%emt 0:00:03]} 35. R6b2 {[%emt 0:02:06]} e2 {[%emt 0:01:00]} 36. Re1 {[%emt 0:00:04]} Rd7 {[%emt 0:00:11]} 37. Kg1 {[%emt 0:01:01]} Rxd5 {[%emt 0:00:12]} 38. Kf2 {[%emt 0:00:13]} h5 {[%emt 0:00:57]} 39. Rc1 {[%emt 0:00:41]} Rd7 {[%emt 0:00:06]} 40. Rb4 {[%emt 0:00:49]} a5 {[%emt 0:00:35]} 41. Rbc4 {[%emt 0:30:13]} Ka6 {[%emt 0:31:08]} 42. h4 {[%emt 0:00:00]} Rd8 {[%emt 0:00:00]} 43. g3 {[%emt 0:00:00]} Kb6 {[%emt 0:00:00]} 44. Rc8 {[%emt 0:00:00]} Rd6 {[%emt 0:00:00]} 45. Rb1+ {[%emt 0:00:00]} Ka7 {[%emt 0:00:00]} 46. Re1 {[%emt 0:00:00]} Kb6 {[%emt 0:00:00]} 47. Rh8 {[%emt 0:00:00]} Kb5 {[%emt 0:00:00]} 48. Rxh5 {[%emt 0:00:00]} Kb4 {[%emt 0:00:00]} 49. Rh8 {[%emt 0:00:00]} Kc3 {[%emt 0:00:00]} 50. Re8 {[%emt 0:00:00]} a4 {[%emt 0:00:00]} 51. Ra8 {[%emt 0:00:00]} Kxd3 {[%emt 0:00:00]} 52. Rxa4 {[%emt 0:00:00]} Nb5 {[%emt 0:00:00]} 53. Rxe2 {[%emt 0:00:00]} Nc3 {[%emt 0:00:00]} 54. Ra3 {[%emt 0:00:00]} 1-0

[Event "FRA-chT Top 12 2019"]
[Site "Brest"]
[Date "2019.05.25"]
[Round "8.1"]
[White "Villegas, Pierre"]
[Black "Heimann, Andreas"]
[Result "0-1"]
[ECO "D31"]
[WhiteElo "2354"]
[BlackElo "2627"]
[Annotator "ChessBase"]
[PlyCount "84"]
[EventDate "2019.05.18"]
[EventType "team-tourn"]
[EventCountry "FRA"]
[SourceTitle "playchess.com"]
[Source "ChessBase"]
[SourceQuality "1"]
[TimeControl "40/5400+30:1800+30"]

1. d4 {[%emt 0:00:00]} d5 {[%emt 0:00:00]} 2. c4 {[%emt 0:00:00]} e6 {[%emt 0:00:00]} 3. Nc3 {[%emt 0:01:11]} Bb4 {[%emt 0:00:00]} 4. e3 {[%emt 0:01:27]} Nf6 {[%emt 0:00:08]} 5. a3 {[%emt 0:00:20]} Bxc3+ {[%emt 0:00:06]} 6. bxc3 {[%emt 0:00:04]} c6 {[%emt 0:00:17]} 7. a4 {[%emt 0:07:39]} O-O {[%emt 0:00:22]} 8. Ba3 {[%emt 0:00:20]} Re8 {[%emt 0:00:07]} 9. Nf3 {[%emt 0:00:44]} b6 {[%emt 0:00:07]} 10. cxd5 {[%emt 0:00:49]} exd5 {[%emt 0:00:09]} 11. Nd2 {[%emt 0:18:21]} Ba6 {[%emt 0:09:53]} 12. Bxa6 {[%emt 0:03:04]} Nxa6 {[%emt 0:01:27]} 13. Qe2 {[%emt 0:03:05]} Nc7 {[%emt 0:03:13]} 14. O-O {[%emt 0:00:38]} Ne6 {[%emt 0:00:40]} 15. Qd3 {[%emt 0:07:54]} Qc7 {[%emt 0:05:34]} 16. f3 {[%emt 0:05:59]} c5 {[%emt 0:00:26]} 17. Bb2 {[%emt 0:02:32]} Rac8 {[%emt 0:01:47]} 18. Rf2 {[%emt 0:04:51]} g6 {[%emt 0:08:07]} 19. Nf1 {[%emt 0:05:31]} Qd7 {[%emt 0:02:30]} 20. Nd2 {[%emt 0:04:19]} a5 {[%emt 0:04:23]} 21. Qb1 {[%emt 0:06:16]} Qc7 {[%emt 0:08:59]} 22. Ra3 {[%emt 0:01:57]} Qc6 {[%emt 0:07:26]} 23. Qf1 Ng7 {[%emt 0:04:35]} 24. c4 {[%emt 0:10:29]} cxd4 {[%emt 0:05:12]} 25. Bxd4 {[%emt 0:00:07]} Nf5 {[%emt 0:01:02]} 26. Bxf6 {[%emt 0:01:55]} Qxf6 {[%emt 0:00:09]} 27. e4 {[%emt 0:00:18]} Qe7 {[%emt 0:00:20]} 28. Qa1 {[%emt 0:05:58]} Nd4 {[%emt 0:07:31]} 29. Rd3 {[%emt 0:04:09]} Nc2 {[%emt 0:01:25]} 30. Qb2 {[%emt 0:00:48]} Nb4 {[%emt 0:04:44]} 31. Rxd5 {[%emt 0:02:45]} Nxd5 {[%emt 0:00:10]} 32. cxd5 {[%emt 0:00:01]} Qb4 {[%emt 0:01:23]} 33. Nf1 {[%emt 0:00:19]} Qxa4 {[%emt 0:01:13]} 34. Qxb6 {[%emt 0:00:07]} Rc1 {[%emt 0:00:21]} 35. h4 {[%emt 0:00:45]} Qb4 {[%emt 0:03:06]} 36. Qa7 {[%emt 0:00:24]} a4 {[%emt 0:02:33]} 37. Kh2 {[%emt 0:01:02]} a3 {[%emt 0:01:21]} 38. Ng3 {[%emt 0:00:23]} Qc5 {[%emt 0:01:03]} 39. Qa4 {[%emt 0:00:21]} Rb8 {[%emt 0:03:32]} 40. Ra2 {[%emt 0:00:32]} Qe7 {[%emt 0:01:26]} 41. Kh3 {[%emt 0:03:26]} Rbb1 {[%emt 0:01:06]} 42. e5 {[%emt 0:00:07]} Qxe5 {[%emt 0:02:37]} 0-1

[Event "FRA-chT Top 12 2019"]
[Site "Brest"]
[Date "2019.05.25"]
[Round "8.2"]
[White "Tabatabaei, M.amin"]
[Black "Donchenko, Alexander"]
[Result "1/2-1/2"]
[ECO "B51"]
[WhiteElo "2610"]
[BlackElo "2595"]
[Annotator "ChessBase"]
[PlyCount "62"]
[EventDate "2019.05.18"]
[EventType "team-tourn"]
[EventCountry "FRA"]
[SourceTitle "playchess.com"]
[Source "ChessBase"]
[SourceQuality "1"]
[TimeControl "40/5400+30:1800+30"]

1. e4 {[%emt 0:00:00]} c5 {[%emt 0:00:00]} 2. Nf3 {[%emt 0:00:00]} d6 {[%emt 0:00:04]} 3. Bb5+ {[%emt 0:00:00]} Nd7 {[%emt 0:00:29]} 4. d4 {[%emt 0:00:17]} cxd4 {[%emt 0:00:14]} 5. Qxd4 {[%emt 0:00:09]} a6 {[%emt 0:00:07]} 6. Bxd7+ {[%emt 0:00:13]} Bxd7 {[%emt 0:00:06]} 7. Nc3 {[%emt 0:00:10]} e5 {[%emt 0:03:18]} 8. Qd3 {[%emt 0:00:10]} Rc8 {[%emt 0:02:28]} 9. O-O {[%emt 0:00:16]} h6 {[%emt 0:00:54]} 10. Nd2 {[%emt 0:05:23]} Be6 {[%emt 0:01:45]} 11. Rd1 {[%emt 0:00:25]} Nf6 {[%emt 0:03:19]} 12. Nf1 {[%emt 0:03:06]} Be7 {[%emt 0:05:30]} 13. Ne3 {[%emt 0:00:46]} O-O {[%emt 0:00:39]} 14. a4 {[%emt 0:00:19]} Qc7 {[%emt 0:04:50]} 15. a5 {[%emt 0:00:29]} Rfd8 {[%emt 0:02:54]} 16. Qe2 {[%emt 0:00:49]} Qd7 {[%emt 0:11:46]} 17. Qf3 {[%emt 0:20:37]} Bg4 {[%emt 0:18:09]} 18. Nxg4 {[%emt 0:00:11]} Qxg4 {[%emt 0:00:05]} 19. Qxg4 {[%emt 0:02:34]} Nxg4 {[%emt 0:00:09]} 20. Nd5 {[%emt 0:00:50]} Kf8 {[%emt 0:00:25]} 21. c3 {[%emt 0:00:19]} Nf6 {[%emt 0:00:21]} 22. Nb6 {[%emt 0:05:03]} Rc6 {[%emt 0:01:09]} 23. f3 {[%emt 0:00:12]} d5 {[%emt 0:00:17]} 24. Nxd5 {[%emt 0:01:03]} Nxd5 {[%emt 0:00:37]} 25. exd5 {[%emt 0:00:08]} Rc5 {[%emt 0:00:12]} 26. Be3 {[%emt 0:01:06]} Rcxd5 {[%emt 0:00:14]} 27. Rxd5 {[%emt 0:00:06]} Rxd5 {[%emt 0:00:06]} 28. Kf2 {[%emt 0:00:04]} f5 29. Ke2 {[%emt 0:00:06]} h5 {[%emt 0:09:55]} 30. b4 {[%emt 0:00:54]} Kf7 {[%emt 0:01:01]} 31. Rb1 {[%emt 0:01:20]} Bd8 {[%emt 0:02:22]} 1/2-1/2

[Event "FRA-chT Top 12 2019"]
[Site "Brest"]
[Date "2019.05.25"]
[Round "8.2"]
[White "Nihal Sarin"]
[Black "Efimov, Igor"]
[Result "1-0"]
[ECO "A85"]
[WhiteElo "2598"]
[BlackElo "2439"]
[Annotator "ChessBase"]
[PlyCount "63"]
[EventDate "2019.05.18"]
[EventType "team-tourn"]
[EventCountry "FRA"]
[SourceTitle "playchess.com"]
[Source "ChessBase"]
[SourceQuality "1"]
[TimeControl "40/5400+30:1800+30"]

1. d4 {[%emt 0:00:00]} f5 {[%emt 0:00:54]} 2. c4 {[%emt 0:05:03]} Nf6 {[%emt 0:06:33]} 3. Nc3 {[%emt 0:00:07]} g6 {[%emt 0:00:08]} 4. h4 {[%emt 0:00:38]} Bg7 {[%emt 0:03:47]} 5. h5 {[%emt 0:03:27]} Nxh5 {[%emt 0:11:31]} 6. e4 {[%emt 0:01:03]} Nf6 {[%emt 0:01:22]} 7. e5 {[%emt 0:10:22]} Ng8 {[%emt 0:00:56]} 8. Nf3 {[%emt 0:14:46]} d6 {[%emt 0:03:46]} 9. Bf4 {[%emt 0:03:08]} dxe5 {[%emt 0:13:53]} 10. Bxe5 {[%emt 0:05:00]} Nf6 {[%emt 0:02:53]} 11. Nd5 {[%emt 0:00:54]} Na6 {[%emt 0:00:13]} 12. Nf4 {[%emt 0:01:23]} e6 {[%emt 0:05:05]} 13. c5 {[%emt 0:12:10]} Nb4 {[%emt 0:15:03]} 14. Qa4+ {[%emt 0:15:55]} Nc6 {[%emt 0:00:32]} 15. Bb5 {[%emt 0:05:29]} Bd7 {[%emt 0:07:02]} 16. Ng5 {[%emt 0:00:53]} Nxe5 {[%emt 0:08:06]} 17. Ngxe6 {[%emt 0:12:13]} Bxb5 {[%emt 0:06:18]} 18. Qxb5+ {[%emt 0:00:02]} Qd7 {[%emt 0:00:11]} 19. Nxc7+ {[%emt 0:04:56]} Ke7 {[%emt 0:01:16]} 20. dxe5 {[%emt 0:00:17]} Ne4 {[%emt 0:02:04]} 21. Qxd7+ {[%emt 0:00:51]} Kxd7 22. Nxa8 {[%emt 0:00:16]} Bxe5 {[%emt 0:00:13]} 23. O-O-O+ {[%emt 0:01:00]} Kc8 {[%emt 0:02:11]} 24. Nd3 {[%emt 0:00:28]} Bf6 {[%emt 0:00:19]} 25. f3 {[%emt 0:00:07]} Ng3 {[%emt 0:00:15]} 26. Rhe1 {[%emt 0:00:01]} Kb8 {[%emt 0:00:08]} 27. Re6 {[%emt 0:00:21]} Bh4 {[%emt 0:00:19]} 28. Rde1 {[%emt 0:00:38]} Rd8 {[%emt 0:03:24]} 29. Re8 {[%emt 0:00:10]} Kc8 {[%emt 0:00:09]} 30. Rxd8+ {[%emt 0:00:25]} Bxd8 {[%emt 0:00:03]} 31. Re8 {[%emt 0:00:14]} Kd7 {[%emt 0:00:22]} 32. Rh8 {[%emt 0:00:07]} 1-0

[Event "FRA-chT Top 12 2019"]
[Site "Brest"]
[Date "2019.05.25"]
[Round "8.2"]
[White "Oleksiyenko, Mykhaylo"]
[Black "Miezis, Normunds"]
[Result "1/2-1/2"]
[ECO "B41"]
[WhiteElo "2595"]
[BlackElo "2456"]
[Annotator "ChessBase"]
[PlyCount "108"]
[EventDate "2019.05.18"]
[EventType "team-tourn"]
[EventCountry "FRA"]
[SourceTitle "playchess.com"]
[Source "ChessBase"]
[SourceQuality "1"]
[TimeControl "40/5400+30:1800+30"]

1. e4 {[%emt 0:00:00]} c5 {[%emt 0:00:00]} 2. Nf3 {[%emt 0:00:00]} e6 {[%emt 0:00:00]} 3. d4 {[%emt 0:00:00]} cxd4 {[%emt 0:00:10]} 4. Nxd4 {[%emt 0:00:00]} a6 {[%emt 0:00:14]} 5. c4 {[%emt 0:00:08]} Nf6 {[%emt 0:01:50]} 6. Nc3 {[%emt 0:00:10]} Bb4 {[%emt 0:00:29]} 7. Qd3 {[%emt 0:00:18]} O-O {[%emt 0:02:44]} 8. e5 {[%emt 0:01:15]} Ne8 {[%emt 0:01:00]} 9. Bf4 {[%emt 0:00:25]} d6 {[%emt 0:01:21]} 10. exd6 {[%emt 0:00:12]} Bxd6 {[%emt 0:01:40]} 11. Bxd6 {[%emt 0:00:07]} Qxd6 {[%emt 0:02:47]} 12. O-O-O {[%emt 0:00:25]} Nd7 {[%emt 0:10:37]} 13. Nc2 {[%emt 0:05:29]} Qxd3 {[%emt 0:06:36]} 14. Bxd3 {[%emt 0:00:40]} Nc5 {[%emt 0:08:45]} 15. Be2 {[%emt 0:01:49]} a5 {[%emt 0:00:37]} 16. f4 {[%emt 0:11:02]} Bd7 {[%emt 0:07:58]} 17. Ne4 {[%emt 0:05:22]} Nxe4 {[%emt 0:01:27]} 18. Rxd7 {[%emt 0:00:03]} Nc5 {[%emt 0:00:23]} 19. Rd4 {[%emt 0:00:28]} Nf6 {[%emt 0:01:43]} 20. Rhd1 {[%emt 0:00:30]} Nfe4 {[%emt 0:08:46]} 21. Bf3 {[%emt 0:06:46]} f5 {[%emt 0:00:31]} 22. Ne3 {[%emt 0:16:03]} g5 {[%emt 0:11:02]} 23. Bxe4 {[%emt 0:09:43]} Nxe4 {[%emt 0:00:19]} 24. fxg5 {[%emt 0:00:30]} Nxg5 {[%emt 0:02:08]} 25. Rd7 {[%emt 0:01:01]} Rab8 {[%emt 0:01:30]} 26. Rc7 {[%emt 0:09:39]} Rf7 {[%emt 0:00:52]} 27. Rdd7 {[%emt 0:00:50]} Rxd7 {[%emt 0:08:59]} 28. Rxd7 {[%emt 0:00:03]} h5 {[%emt 0:00:35]} 29. Kc2 {[%emt 0:05:32]} Ne4 {[%emt 0:04:13]} 30. Re7 {[%emt 0:11:48]} Nc5 {[%emt 0:00:38]} 31. b3 {[%emt 0:02:46]} Rd8 {[%emt 0:04:04]} 32. a3 {[%emt 0:02:08]} f4 {[%emt 0:07:36]} 33. Nf1 {[%emt 0:04:18]} Rd4 {[%emt 0:01:21]} 34. Nd2 {[%emt 0:00:53]} b6 {[%emt 0:01:04]} 35. b4 {[%emt 0:01:53]} axb4 {[%emt 0:00:08]} 36. axb4 {[%emt 0:00:01]} Kf8 {[%emt 0:00:45]} 37. Rh7 {[%emt 0:04:25]} Ne4 {[%emt 0:00:20]} 38. Nxe4 {[%emt 0:00:11]} Rxe4 {[%emt 0:00:02]} 39. Kd3 {[%emt 0:00:23]} Re3+ {[%emt 0:01:56]} 40. Kd4 {[%emt 0:02:05]} Re2 {[%emt 0:00:14]} 41. Rxh5 {[%emt 0:07:28]} Rxg2 {[%emt 0:03:13]} 42. Rh4 {[%emt 0:03:20]} Ke7 {[%emt 0:01:30]} 43. Rxf4 {[%emt 0:00:05]} Rxh2 {[%emt 0:00:26]} 44. c5 {[%emt 0:00:12]} Rh5 {[%emt 0:00:29]} 45. Kc4 {[%emt 0:00:38]} bxc5 {[%emt 0:00:09]} 46. bxc5 {[%emt 0:00:03]} Rh1 {[%emt 0:03:49]} 47. Kb5 {[%emt 0:00:13]} Rb1+ {[%emt 0:01:08]} 48. Kc6 {[%emt 0:00:04]} e5 {[%emt 0:00:10]} 49. Rh4 {[%emt 0:00:33]} Ke6 {[%emt 0:00:24]} 50. Rh6+ {[%emt 0:02:22]} Kf5 {[%emt 0:00:29]} 51. Kd7 {[%emt 0:00:04]} e4 {[%emt 0:01:52]} 52. c6 {[%emt 0:00:01]} e3 {[%emt 0:00:59]} 53. c7 {[%emt 0:00:55]} Rb7 {[%emt 0:00:13]} 54. Rh1 {[%emt 0:00:26]} Ke5 1/2-1/2

[Event "FRA-chT Top 12 2019"]
[Site "Brest"]
[Date "2019.05.25"]
[Round "8.2"]
[White "Brochet, Philippe"]
[Black "Fedorchuk, Sergey A."]
[Result "0-1"]
[ECO "B23"]
[WhiteElo "2400"]
[BlackElo "2620"]
[Annotator "ChessBase"]
[PlyCount "56"]
[EventDate "2019.05.18"]
[EventType "team-tourn"]
[EventCountry "FRA"]
[SourceTitle "playchess.com"]
[Source "ChessBase"]
[SourceQuality "1"]
[TimeControl "40/5400+30:1800+30"]

1. e4 {[%emt 0:05:02]} c5 {[%emt 0:00:08]} 2. Nc3 {[%emt 0:00:04]} e6 {[%emt 0:01:36]} 3. Nf3 {[%emt 0:02:38]} Nc6 {[%emt 0:02:24]} 4. Bb5 {[%emt 0:00:24]} Na5 {[%emt 0:09:02]} 5. O-O {[%emt 0:08:30]} a6 {[%emt 0:03:40]} 6. Be2 {[%emt 0:00:15]} Qc7 {[%emt 0:00:11]} 7. b3 {[%emt 0:05:59]} b5 {[%emt 0:03:59]} 8. Bb2 {[%emt 0:01:39]} Bb7 {[%emt 0:02:58]} 9. d4 {[%emt 0:12:26]} Nf6 {[%emt 0:20:23]} 10. e5 {[%emt 0:08:54]} Nd5 {[%emt 0:00:55]} 11. a3 {[%emt 0:13:41]} Nf4 {[%emt 0:07:48]} 12. Qd2 {[%emt 0:07:40]} cxd4 {[%emt 0:12:29]} 13. Qxf4 {[%emt 0:08:45]} dxc3 {[%emt 0:00:38]} 14. Ng5 {[%emt 0:00:32]} f5 {[%emt 0:07:59]} 15. Bc1 {[%emt 0:00:38]} Nc6 {[%emt 0:00:34]} 16. Re1 {[%emt 0:07:13]} g6 {[%emt 0:02:43]} 17. Qg3 {[%emt 0:00:02]} Bg7 {[%emt 0:01:10]} 18. f4 {[%emt 0:01:28]} Ne7 {[%emt 0:05:44]} 19. Be3 {[%emt 0:01:51]} Be4 {[%emt 0:11:56]} 20. b4 {[%emt 0:02:20]} Nd5 {[%emt 0:01:38]} 21. Nxe4 {[%emt 0:03:12]} fxe4 {[%emt 0:00:10]} 22. Rad1 {[%emt 0:00:26]} O-O {[%emt 0:00:36]} 23. h4 {[%emt 0:02:49]} Bh6 {[%emt 0:01:05]} 24. Rf1 {[%emt 0:00:26]} Nxe3 {[%emt 0:01:22]} 25. Qxe3 {[%emt 0:00:05]} Qxe5 {[%emt 0:00:10]} 26. Rxd7 {[%emt 0:02:33]} Bxf4 {[%emt 0:00:31]} 27. Qd4 {[%emt 0:00:50]} Qxd4+ {[%emt 0:00:06]} 28. Rxd4 {[%emt 0:00:03]} Be3+ {[%emt 0:00:02]} 0-1

[Event "FRA-chT Top 12 2019"]
[Site "Brest"]
[Date "2019.05.25"]
[Round "8.3"]
[White "Balogh, Csaba"]
[Black "Cossin, Sebastien"]
[Result "1-0"]
[ECO "B42"]
[WhiteElo "2598"]
[BlackElo "2494"]
[Annotator "ChessBase"]
[PlyCount "105"]
[EventDate "2019.05.18"]
[EventType "team-tourn"]
[EventCountry "FRA"]
[SourceTitle "playchess.com"]
[Source "ChessBase"]
[SourceQuality "1"]
[TimeControl "40/5400+30:1800+30"]

1. e4 {[%emt 0:00:00]} c5 {[%emt 0:00:00]} 2. Nf3 {[%emt 0:00:14]} e6 {[%emt 0:00:00]} 3. d4 {[%emt 0:04:49]} cxd4 {[%emt 0:00:00]} 4. Nxd4 {[%emt 0:00:04]} a6 {[%emt 0:00:07]} 5. Bd3 {[%emt 0:00:30]} Bc5 {[%emt 0:00:35]} 6. Nb3 {[%emt 0:00:07]} Ba7 {[%emt 0:00:09]} 7. O-O {[%emt 0:07:17]} Nc6 {[%emt 0:00:29]} 8. c4 {[%emt 0:01:26]} d6 {[%emt 0:01:15]} 9. Nc3 {[%emt 0:01:26]} Nf6 {[%emt 0:01:35]} 10. Qe2 {[%emt 0:02:46]} O-O {[%emt 0:00:38]} 11. Be3 {[%emt 0:00:16]} Bxe3 {[%emt 0:08:28]} 12. Qxe3 {[%emt 0:02:25]} e5 {[%emt 0:03:16]} 13. Rfd1 {[%emt 0:01:31]} Be6 {[%emt 0:05:43]} 14. Rd2 {[%emt 0:04:57]} Qb8 {[%emt 0:06:01]} 15. Rad1 {[%emt 0:09:16]} Rd8 {[%emt 0:06:20]} 16. Bf1 {[%emt 0:12:32]} h6 {[%emt 0:16:41]} 17. h3 {[%emt 0:00:57]} b5 {[%emt 0:08:36]} 18. Nd5 {[%emt 0:03:19]} Bxd5 {[%emt 0:05:01]} 19. cxd5 {[%emt 0:02:00]} Ne7 {[%emt 0:00:06]} 20. Rc2 {[%emt 0:01:09]} a5 {[%emt 0:01:21]} 21. Rdc1 {[%emt 0:01:50]} Rd7 {[%emt 0:02:44]} 22. Nd2 {[%emt 0:02:47]} Rb7 {[%emt 0:01:20]} 23. b3 {[%emt 0:07:47]} b4 {[%emt 0:02:17]} 24. Nc4 {[%emt 0:08:49]} a4 {[%emt 0:00:52]} 25. g3 {[%emt 0:02:20]} axb3 {[%emt 0:02:19]} 26. axb3 {[%emt 0:00:06]} Qd8 {[%emt 0:05:56]} 27. Kh2 {[%emt 0:02:22]} Ng6 {[%emt 0:02:50]} 28. Nb2 {[%emt 0:05:12]} Kh7 {[%emt 0:02:57]} 29. Na4 {[%emt 0:00:22]} h5 {[%emt 0:04:40]} 30. Qf3 {[%emt 0:00:52]} h4 {[%emt 0:00:41]} 31. Qf5 {[%emt 0:02:10]} Ng8 {[%emt 0:05:17]} 32. Rc8 {[%emt 0:03:48]} Rxc8 {[%emt 0:00:05]} 33. Rxc8 {[%emt 0:00:05]} Qe7 {[%emt 0:01:09]} 34. Rc6 {[%emt 0:05:05]} Nh6 {[%emt 0:00:49]} 35. Qf3 {[%emt 0:00:07]} Qd8 {[%emt 0:02:14]} 36. Qe3 {[%emt 0:03:37]} Ne7 {[%emt 0:00:46]} 37. Rb6 {[%emt 0:00:33]} Rc7 {[%emt 0:00:37]} 38. g4 {[%emt 0:01:54]} g6 {[%emt 0:03:20]} 39. Qg5 {[%emt 0:01:45]} Rc2 {[%emt 0:01:34]} 40. Qf6 {[%emt 0:00:50]} Qc7 {[%emt 0:00:41]} 41. Kg1 {[%emt 0:12:50]} Ra2 {[%emt 0:06:55]} 42. g5 {[%emt 0:05:11]} Nhg8 {[%emt 0:16:05]} 43. Qxf7+ {[%emt 0:02:37]} Kh8 {[%emt 0:00:04]} 44. Rc6 {[%emt 0:00:19]} Qb8 {[%emt 0:04:13]} 45. Rc1 {[%emt 0:01:29]} Qa7 {[%emt 0:00:27]} 46. Qf3 {[%emt 0:02:02]} Qd4 {[%emt 0:02:17]} 47. Qe3 {[%emt 0:01:24]} Qxe3 {[%emt 0:00:58]} 48. fxe3 {[%emt 0:00:04]} Ra3 {[%emt 0:00:14]} 49. Bc4 {[%emt 0:00:20]} Nc8 {[%emt 0:00:12]} 50. Rc2 {[%emt 0:02:50]} Kg7 {[%emt 0:00:09]} 51. Kf2 {[%emt 0:00:20]} Ra1 {[%emt 0:01:38]} 52. Be2 {[%emt 0:01:15]} Nce7 {[%emt 0:00:14]} 53. Rc4 {[%emt 0:01:24]} 1-0

[Event "FRA-chT Top 12 2019"]
[Site "Brest"]
[Date "2019.05.25"]
[Round "8.3"]
[White "Cornette, Deimante"]
[Black "Smith, Axel"]
[Result "1-0"]
[ECO "C48"]
[WhiteElo "2433"]
[BlackElo "2481"]
[Annotator "ChessBase"]
[PlyCount "49"]
[EventDate "2019.05.18"]
[EventType "team-tourn"]
[EventCountry "FRA"]
[SourceTitle "playchess.com"]
[Source "ChessBase"]
[SourceQuality "1"]
[TimeControl "40/5400+30:1800+30"]

1. e4 {[%emt 0:00:00]} e5 {[%emt 0:00:00]} 2. Nf3 {[%emt 0:00:00]} Nc6 {[%emt 0:00:00]} 3. Nc3 {[%emt 0:00:00]} Nf6 {[%emt 0:00:00]} 4. Bb5 {[%emt 0:00:06]} Bc5 {[%emt 0:00:00]} 5. O-O {[%emt 0:00:19]} O-O {[%emt 0:00:00]} 6. Nxe5 {[%emt 0:00:23]} Nxe5 {[%emt 0:00:00]} 7. d4 {[%emt 0:00:12]} Bd6 {[%emt 0:00:56]} 8. dxe5 {[%emt 0:00:09]} Bxe5 {[%emt 0:00:08]} 9. Bd3 {[%emt 0:00:07]} Re8 {[%emt 0:01:20]} 10. Bg5 {[%emt 0:00:44]} c6 11. Kh1 Qa5 12. f4 Bxc3 13. e5 Bxe5 14. fxe5 Rxe5 15. Bxf6 gxf6 16. Qg4+ Rg5 {[%emt 1:25:09]} 17. Qh4 h5 18. Rxf6 {[%emt 0:42:22]} Qe5 19. Qf2 d6 {[%emt 0:09:37]} 20. Rxf7 Be6 21. Rf1 Bd5 22. Rf8+ Kg7 23. Qf7+ Bxf7 24. R1xf7+ Kh6 25. Rh7# 1-0

[Event "FRA-chT Top 12 2019"]
[Site "Brest"]
[Date "2019.05.25"]
[Round "8.3"]
[White "Brunner, Nicolas"]
[Black "Karthikeyan, Murali"]
[Result "0-1"]
[ECO "E91"]
[WhiteElo "2422"]
[BlackElo "2596"]
[Annotator "ChessBase"]
[PlyCount "80"]
[EventDate "2019.05.18"]
[EventType "team-tourn"]
[EventCountry "FRA"]
[SourceTitle "playchess.com"]
[Source "ChessBase"]
[SourceQuality "1"]
[TimeControl "40/5400+30:1800+30"]

1. d4 Nf6 2. c4 g6 3. Nc3 Bg7 4. e4 d6 5. Nf3 O-O 6. Be2 Nbd7 7. O-O e5 8. Be3 c6 9. d5 c5 10. Ne1 Ne8 11. g4 f5 12. gxf5 gxf5 13. exf5 Nb6 14. Kh1 Bxf5 15. Rg1 e4 16. Qd2 Kh8 17. Ng2 Be5 18. Bg5 Qd7 19. Ne3 Nf6 20. Nxf5 Qxf5 21. Rg2 Rg8 22. Rag1 Nbd7 23. Bd1 Rg6 24. Bc2 Rag8 25. Qe3 Bd4 26. Qd2 Ne5 27. Bxf6+ Qxf6 28. Rxg6 Rxg6 29. Rxg6 hxg6 30. Bxe4 Ng4 31. Nd1 Bxf2 32. Qc3 Bd4 33. Qf3 Qg5 34. Qf8+ Kh7 35. Qxd6 Ne5 36. Bg2 Qh4 37. Qf8 Ng4 38. Qf7+ Bg7 39. Qf4 Qe1+ 40. Qf1 Qxd1 0-1

[Event "FRA-chT Top 12 2019"]
[Site "Brest"]
[Date "2019.05.25"]
[Round "8.3"]
[White "Charmeteau, Sven"]
[Black "Hera, Imre Jr."]
[Result "0-1"]
[ECO "B15"]
[WhiteElo "2292"]
[BlackElo "2611"]
[Annotator "ChessBase"]
[PlyCount "50"]
[EventDate "2019.05.18"]
[EventType "team-tourn"]
[EventCountry "FRA"]
[SourceTitle "playchess.com"]
[Source "ChessBase"]
[SourceQuality "1"]
[TimeControl "40/5400+30:1800+30"]

1. e4 {[%emt 0:00:00]} c6 {[%emt 0:00:04]} 2. d4 {[%emt 0:00:00]} d5 {[%emt 0:00:13]} 3. Nd2 {[%emt 0:00:00]} dxe4 {[%emt 0:00:15]} 4. Nxe4 {[%emt 0:00:00]} Nf6 {[%emt 0:00:05]} 5. Nxf6+ {[%emt 0:00:07]} exf6 {[%emt 0:00:02]} 6. c3 {[%emt 0:00:17]} Bd6 {[%emt 0:00:04]} 7. Bd3 {[%emt 0:00:14]} O-O {[%emt 0:00:06]} 8. Ne2 {[%emt 0:00:27]} Re8 {[%emt 0:00:20]} 9. Qc2 {[%emt 0:01:31]} h5 {[%emt 0:00:05]} 10. Be3 {[%emt 0:10:13]} Nd7 {[%emt 0:03:14]} 11. Ng3 {[%emt 0:05:50]} Nb6 {[%emt 0:16:01]} 12. c4 {[%emt 0:16:59]} Bf4 {[%emt 0:20:40]} 13. O-O-O {[%emt 0:01:43]} Bxe3+ {[%emt 0:00:06]} 14. fxe3 {[%emt 0:00:06]} h4 {[%emt 0:02:28]} 15. Nf5 {[%emt 0:20:13]} Bxf5 {[%emt 0:01:21]} 16. Bxf5 {[%emt 0:00:05]} Rxe3 {[%emt 0:03:11]} 17. Bh7+ {[%emt 0:11:32]} Kf8 {[%emt 0:04:38]} 18. Qf2 {[%emt 0:00:15]} Nxc4 {[%emt 0:03:07]} 19. b3 {[%emt 0:04:29]} Rc3+ {[%emt 0:09:52]} 20. Kb1 {[%emt 0:00:16]} Ne3 {[%emt 0:00:31]} 21. Kb2 {[%emt 0:04:42]} Nxd1+ {[%emt 0:02:15]} 22. Rxd1 {[%emt 0:00:02]} Rc5 {[%emt 0:02:09]} 23. Qxh4 {[%emt 0:00:45]} f5 {[%emt 0:05:02]} 24. Qh3 {[%emt 0:08:58]} Qf6 {[%emt 0:00:42]} 25. Bg6 {[%emt 0:01:56]} Rd8 {[%emt 0:01:13]} 0-1